bitfinex/quotes_BTCUSD_20250109
["timestamp","ask_amount","ask_price","bid_price","bid_amount"]
[1736410535683,0.00118784,92985.0,92964.0,0.03341523]
[1736410535885,0.00118784,92984.0,92967.0,0.0311396]
[1736410536119,0.215091,92984.0,92968.0,0.03341523]
[1736410536331,0.215095,92982.0,92969.0,0.03341523]
[1736410536541,0.00118784,92981.0,92970.0,0.03341523]
[1736410536744,0.215076,92990.0,92975.0,0.215111]
[1736410536950,0.00118784,92989.0,92976.0,0.03341523]
[1736410537253,0.215081,92988.0,92977.0,0.03341523]
[1736410537445,0.00118784,92987.0,92978.0,0.03341523]
[1736410537599,0.00118784,92987.0,92979.0,0.03341523]
[1736410537798,0.215049,93002.0,92980.0,0.03341523]
[1736410538004,0.00118784,93001.0,92982.0,0.215094]
[1736410538217,0.002,92989.0,92988.0,0.215079]
[1736410538425,0.215041,93006.0,92988.0,0.215079]
[1736410538426,0.00118784,93005.0,92988.0,0.27963383]
[1736410538650,0.00118784,93005.0,92989.0,0.03341523]
[1736410539001,0.00118784,93005.0,92990.0,0.03341523]
[1736410539216,0.00118784,93005.0,92991.0,0.03341523]
[1736410539437,0.00118784,93005.0,92988.0,0.03841523]
[1736410539438,0.215065,92996.0,92988.0,0.03841523]
[1736410539580,0.00135844,92995.0,92989.0,0.03341523]
[1736410539786,0.0001706,92995.0,92990.0,0.03341523]
[1736410540123,0.0001706,92995.0,92991.0,0.03341523]
[1736410540317,0.0001706,92995.0,92993.0,0.0311396]
[1736410540468,0.0001706,92995.0,92994.0,0.03341523]
[1736410541655,0.0001706,92995.0,92994.0,0.06455483]
[1736410541862,0.0001706,92995.0,92994.0,0.06755483]
[1736410542076,0.0001706,92995.0,92994.0,0.06455483]
[1736410542539,0.0001706,92995.0,92994.0,0.06755483]
[1736410542711,0.0001706,92995.0,92994.0,0.06455483]
[1736410543133,0.0001706,92995.0,92994.0,0.03341523]
[1736410543980,0.0011706,92995.0,92994.0,0.04441523]
[1736410544188,0.0011706,92995.0,92994.0,0.011]
[1736410544393,0.0001706,92995.0,92989.0,0.0311396]
[1736410544592,0.0011706,92995.0,92994.0,0.007]
[1736410544845,0.0011706,92995.0,92994.0,0.04239481]
[1736410545057,0.0001706,92995.0,92994.0,0.03539481]
[1736410545261,0.0001706,92995.0,92994.0,0.03839481]
[1736410545490,0.0001706,92995.0,92994.0,0.06653441]
[1736410545738,0.0001706,92995.0,92994.0,0.03539481]
[1736410545911,0.0011706,92995.0,92994.0,0.07353441]
[1736410546119,0.0011706,92995.0,92994.0,0.07153441]
[1736410547101,0.0001706,92995.0,92994.0,0.06453441]
[1736410547507,0.215029,93011.0,92995.0,0.215065]
[1736410547710,0.00015007,93015.0,93001.0,0.0311396]
[1736410547910,0.00015007,93015.0,93006.0,0.215039]
[1736410548117,0.00015007,93015.0,93008.0,0.215035]
[1736410548307,0.00015007,93015.0,93009.0,0.03339481]
[1736410548499,0.21517007,93015.0,93005.0,0.0311396]
[1736410548703,0.00118784,93014.0,93006.0,0.03335533]
[1736410549342,0.00118784,93014.0,93007.0,0.215037]
[1736410549586,0.00015007,93015.0,93012.0,0.0311396]
[1736410550052,0.00015007,93015.0,93013.0,0.215023]
[1736410550395,0.00015007,93015.0,93013.0,0.2461626]
[1736410550623,0.00015007,93015.0,93014.0,0.0311396]
[1736410551234,0.00015007,93015.0,93006.0,0.0311396]
[1736410551415,0.00015007,93015.0,93013.0,0.003]
[1736410551609,0.00015007,93015.0,93014.0,0.2461606]
[1736410551928,0.00015007,93015.0,93014.0,0.2491606]
[1736410552277,0.00015007,93015.0,93014.0,0.0421396]
[1736410552710,0.00015007,93015.0,93014.0,0.011]
[1736410552878,0.00015007,93015.0,93014.0,0.003]
[1736410553347,0.00015007,93015.0,93012.0,0.0311396]
[1736410553513,0.00015007,93015.0,93013.0,0.215023]
[1736410553730,0.00015007,93015.0,93013.0,0.217023]
[1736410554022,0.00015007,93015.0,93014.0,0.0311396]
[1736410554229,0.00015007,93015.0,93014.0,0.28543936]
[1736410554457,0.00015007,93015.0,93014.0,0.28643936]
[1736410555038,0.00015007,93015.0,93014.0,0.28543936]
[1736410555614,0.00015007,93015.0,93014.0,0.29143936]
[1736410556000,0.00015007,93015.0,93014.0,0.28543936]
[1736410556398,0.00015007,93015.0,93014.0,0.29243936]
[1736410556599,0.00015007,93015.0,93014.0,0.29543936]
[1736410556970,0.00015007,93015.0,93014.0,0.29243936]
[1736410557416,0.00015007,93015.0,93014.0,0.29743936]
[1736410557782,0.00015007,93015.0,93014.0,0.29243936]
[1736410558179,0.00015007,93015.0,93014.0,0.29143936]
[1736410558553,0.00015007,93015.0,93014.0,0.30043936]
[1736410558963,0.00015007,93015.0,93014.0,0.29143936]
[1736410559369,0.00015007,93015.0,93014.0,0.30043936]
[1736410559545,0.00015007,93015.0,93014.0,0.28543936]
[1736410559774,0.00015007,93015.0,93014.0,0.28743936]
[1736410559984,0.00015007,93015.0,93014.0,0.29643936]
[1736410560380,0.00015007,93015.0,93014.0,0.29443936]
[1736410560572,0.00015007,93015.0,93014.0,0.29943936]
[1736410561185,0.00015007,93015.0,93014.0,0.28543936]
[1736410561596,0.0001706,93027.0,93026.0,0.0311396]
[1736410561801,0.00067334,93027.0,93026.0,0.50043236]
[1736410563011,0.00067334,93027.0,93026.0,0.50943236]
[1736410563852,0.0001708,93050.0,93049.0,0.3960796]
[1736410564013,0.00032153,93050.0,93049.0,0.57137936]
[1736410565033,0.00032153,93050.0,93049.0,0.70467724]
[1736410565470,0.00032153,93050.0,93049.0,0.85757724]
[1736410565672,0.00032153,93050.0,93049.0,0.87557724]
[1736410565903,5.3e-07,93050.0,93049.0,0.87557724]
[1736410566110,5.3e-07,93050.0,93049.0,0.88457724]
[1736410566315,5.3e-07,93050.0,93049.0,0.84407724]
[1736410566525,5.3e-07,93050.0,93049.0,0.76407724]
[1736410566726,5.3e-07,93050.0,93049.0,0.83507724]
[1736410567018,5.3e-07,93050.0,93049.0,0.93507724]
[1736410567235,5.3e-07,93050.0,93049.0,0.84207724]
[1736410567738,5.3e-07,93050.0,93049.0,0.66407724]
[1736410567965,5.3e-07,93050.0,93049.0,0.69617724]
[1736410568115,5.3e-07,93050.0,93049.0,0.62517724]
[1736410568320,5.3e-07,93050.0,93049.0,0.61617724]
[1736410568530,5.3e-07,93050.0,93049.0,0.70317724]
[1736410569066,5.3e-07,93050.0,93049.0,0.69417724]
[1736410569269,5.3e-07,93050.0,93049.0,0.70317724]
[1736410569501,0.01208276,93082.0,93050.0,0.15]
[1736410569755,0.214832,93096.0,93060.0,0.3960546]
[1736410569998,0.0688604,93113.0,93060.0,0.3960546]
[1736410569999,0.1232,93112.0,93060.0,0.65665224]
[1736410570187,0.01091958,93102.0,93060.0,0.65665224]
[1736410570448,0.00118784,93101.0,93060.0,0.72765224]
[1736410570684,0.214871,93079.0,93060.0,0.53365224]
[1736410570924,0.00118784,93078.0,93060.0,0.53365224]
[1736410571167,0.01131238,93082.0,93060.0,0.53365224]
[1736410571416,0.00118784,93081.0,93060.0,0.54065224]
[1736410571698,0.00118784,93081.0,93060.0,0.57135436]
[1736410571893,0.214862,93083.0,93060.0,0.60463163]
[1736410572032,0.00118784,93082.0,93060.0,0.61363163]
[1736410572266,0.00118784,93082.0,93060.0,0.61363714]
[1736410572446,0.00118784,93082.0,93060.0,0.60463714]
[1736410572663,0.00118784,93086.0,93060.0,0.61363714]
[1736410572871,0.00118784,93086.0,93060.0,0.60463714]
[1736410573291,0.0001708,93088.0,93060.0,0.60463714]
[1736410573700,0.0001708,93088.0,93060.0,0.70463714]
[1736410573927,0.0001708,93088.0,93060.0,0.70863714]
[1736410574132,0.0001708,93088.0,93060.0,0.73163714]
[1736410574302,0.0001708,93088.0,93060.0,0.85643714]
[1736410574654,0.0001708,93088.0,93087.0,0.2459916]
[1736410574780,0.00032153,93088.0,93087.0,0.35029136]
[1736410575190,0.00032153,93088.0,93087.0,0.13543936]
[1736410575428,0.00032153,93088.0,93087.0,0.0311396]
[1736410576129,0.00032153,93088.0,93087.0,0.28651362]
[1736410576352,0.00032153,93088.0,93087.0,0.31869018]
[1736410576559,0.00032153,93088.0,93087.0,0.32269018]
[1736410576759,0.00022782,93088.0,93087.0,0.28943936]
[1736410576955,0.00022782,93088.0,93087.0,0.1851396]
[1736410577164,0.00022782,93088.0,93087.0,0.13943936]
[1736410577579,0.00022782,93088.0,93087.0,0.14243936]
[1736410577987,0.00022782,93088.0,93087.0,0.13843936]
[1736410578255,0.00022782,93088.0,93087.0,0.14243936]
[1736410578667,0.00022782,93088.0,93087.0,0.0401396]
[1736410578875,0.00022782,93088.0,93087.0,0.14443936]
[1736410579106,0.00022782,93088.0,93087.0,0.13743936]
[1736410579315,0.00022782,93088.0,93087.0,0.1385135]
[1736410579517,0.0001704,93098.0,93088.0,0.64455]
[1736410579721,0.0001704,93098.0,93087.0,0.17775607]
[1736410579722,0.0001704,93098.0,93089.0,0.13754233]
[1736410579967,0.0001704,93098.0,93097.0,0.2459686]
[1736410580194,0.0001704,93098.0,93097.0,0.35026836]
[1736410580820,0.0001704,93098.0,93097.0,0.0311396]
[1736410581041,0.21484,93093.0,93088.0,0.001]
[1736410581262,0.214843,93091.0,93088.0,0.001]
[1736410581481,0.260061,93084.0,93074.0,0.0311396]
[1736410581699,0.0452,93084.0,93081.0,0.0311396]
[1736410581912,0.0452,93084.0,93075.0,0.00015073]
[1736410581913,0.0452,93100.0,93093.0,0.0311396]
[1736410582131,0.0452,93100.0,93096.0,0.0311396]
[1736410582344,0.00135844,93109.0,93097.0,0.13543936]
[1736410582756,0.01095709,93106.0,93088.0,0.15]
[1736410582987,0.00118784,93105.0,93090.0,0.15]
[1736410583189,0.00118784,93105.0,93091.0,0.31914276]
[1736410583400,0.214819,93102.0,93091.0,0.10429976]
[1736410583603,0.00118784,93101.0,93091.0,0.10429976]
[1736410583818,0.00118784,93105.0,93091.0,0.10429976]
[1736410584237,0.214819,93102.0,93091.0,0.10429976]
[1736410584446,0.2149984,93098.0,93090.0,0.001]
[1736410584648,0.2149984,93098.0,93073.0,0.214883]
[1736410584649,0.214833,93096.0,93073.0,0.214883]
[1736410584868,0.214836,93094.0,93062.0,0.21491]
[1736410585079,0.26522584,93093.0,93091.0,0.001]
[1736410585287,0.0492,93093.0,93091.0,0.003]
[1736410585499,0.05038784,93093.0,93091.0,0.003]
[1736410585696,0.05038784,93093.0,93091.0,0.001]
[1736410586349,0.0492,93093.0,93070.0,0.15986545]
[1736410586555,0.00118784,93092.0,93076.0,0.10429976]
[1736410586679,0.00118784,93092.0,93077.0,0.214875]
[1736410586900,0.21602984,93092.0,93078.0,0.10429976]
[1736410587124,0.00118784,93091.0,93078.0,0.10429976]
[1736410587477,0.00118784,93091.0,93079.0,0.214871]
[1736410587683,0.00118784,93091.0,93079.0,0.31917076]
[1736410588092,0.00118784,93092.0,93079.0,0.31917076]
[1736410588499,0.01086855,93096.0,93087.0,0.214852]
[1736410588744,0.01086855,93096.0,93088.0,0.10429976]
[1736410588745,0.00118784,93095.0,93088.0,0.10429976]
[1736410589074,0.0001704,93098.0,93088.0,0.10429976]
[1736410589289,0.01138971,93098.0,93081.0,0.364866]
[1736410589481,0.214839,93093.0,93082.0,0.03335536]
[1736410589682,0.00118784,93092.0,93082.0,0.03335536]
[1736410589905,0.00118784,93092.0,93079.0,0.214871]
[1736410590110,0.00118784,93092.0,93080.0,0.28765515]
[1736410590306,0.00118784,93096.0,93082.0,0.15]
[1736410590860,0.00118784,93096.0,93084.0,0.15]
[1736410591035,0.00135824,93098.0,93085.0,0.13766651]
[1736410591297,0.00135824,93098.0,93086.0,0.03336675]
[1736410591465,0.00135824,93098.0,93087.0,0.10429976]
[1736410591706,0.001,93096.0,93087.0,0.10429976]
[1736410591908,0.001,93096.0,93092.0,0.429678]
[1736410592317,0.001,93096.0,93087.0,0.10429976]
[1736410592527,0.001,93096.0,93089.0,0.214848]
[1736410592740,0.001,93096.0,93090.0,0.0333881]
[1736410592949,0.00118784,93095.0,93088.0,0.0333881]
[1736410593159,0.214837,93094.0,93084.0,0.02191584]
[1736410593364,0.214837,93094.0,93068.0,0.214896]
[1736410593365,0.00118784,93093.0,93076.0,0.214878]
[1736410593540,0.00118784,93093.0,93092.0,0.003]
[1736410593987,0.214838,93093.0,93092.0,0.003]
[1736410594984,0.214838,93093.0,93079.0,0.02204497]
[1736410595188,0.00118784,93092.0,93080.0,0.03344706]
[1736410595341,0.214843,93091.0,93088.0,0.003]
[1736410595551,0.00118784,93090.0,93078.0,0.15]
[1736410595736,0.00118784,93090.0,93079.0,0.0334498]
[1736410596423,0.214834,93095.0,93079.0,0.0334498]
[1736410596623,0.00118784,93094.0,93088.0,0.001]
[1736410596835,0.00118784,93094.0,93078.0,0.15]
[1736410597036,0.00118784,93094.0,93079.0,0.03347298]
[1736410597234,0.00118784,93094.0,93080.0,0.31916776]
[1736410597472,0.0001704,93098.0,93081.0,0.03454728]
[1736410597595,0.0001704,93098.0,93083.0,0.214862]
[1736410597796,0.0001704,93098.0,93085.0,0.214857]
[1736410597999,0.0001704,93098.0,93086.0,0.13777274]
[1736410598215,0.0001704,93098.0,93087.0,0.03347298]
[1736410598425,0.0001704,93098.0,93088.0,0.24832298]
[1736410598686,0.0001704,93098.0,93089.0,0.03347298]
[1736410598910,0.0001704,93098.0,93090.0,0.03347298]
[1736410599123,0.0001704,93098.0,93091.0,0.03347298]
[1736410599324,0.0001704,93098.0,93092.0,0.03347298]
[1736410599527,0.0001704,93098.0,93093.0,0.13777274]
[1736410599666,0.0001704,93098.0,93094.0,0.03347298]
[1736410599866,0.0001704,93098.0,93096.0,0.214832]
[1736410600071,0.0001704,93098.0,93097.0,0.13777274]
[1736410601354,0.0001704,93098.0,93097.0,0.29184679]
[1736410601683,0.0001704,93098.0,93097.0,0.29077274]
[1736410601886,0.0001704,93098.0,93097.0,0.35737274]
[1736410602509,0.01044466,93119.0,93109.0,0.214801]
[1736410602755,0.00118784,93124.0,93110.0,0.13777274]
[1736410602931,0.00118784,93124.0,93115.0,0.214787]
[1736410603129,0.214755,93130.0,93116.0,0.03347298]
[1736410603284,0.214765,93125.0,93116.0,0.03347298]
[1736410603468,0.0111384,93126.0,93119.0,0.214778]
[1736410603469,0.00118784,93124.0,93119.0,0.214778]
[1736410603677,0.0001704,93126.0,93121.0,0.15]
[1736410603678,0.00067295,93126.0,93121.0,0.15]
[1736410603875,0.00067295,93126.0,93122.0,1.63777274]
[1736410604077,0.00067295,93126.0,93124.0,0.214767]
[1736410604277,0.00067295,93126.0,93125.0,0.13777274]
[1736410604729,0.00067295,93126.0,93125.0,1.63884648]
[1736410604924,0.00067295,93126.0,93125.0,1.63777274]
[1736410606023,0.00067295,93126.0,93125.0,1.64577274]
[1736410606223,0.00067295,93126.0,93125.0,1.63777274]
[1736410606469,0.00067295,93126.0,93125.0,1.64677274]
[1736410606904,0.00067295,93126.0,93125.0,1.64077274]
[1736410607329,0.00067295,93126.0,93125.0,0.04247298]
[1736410607505,0.00067295,93126.0,93125.0,0.009]
[1736410607799,0.00186079,93126.0,93125.0,0.012]
[1736410607938,0.00186079,93126.0,93125.0,0.11629976]
[1736410608146,0.00067295,93126.0,93125.0,0.11329976]
[1736410608752,0.00067295,93126.0,93119.0,0.214778]
[1736410609002,0.00067295,93126.0,93121.0,0.214774]
[1736410609203,0.00067295,93126.0,93122.0,0.10429976]
[1736410610047,0.00067295,93126.0,93125.0,0.004]
[1736410610247,0.0001706,93155.0,93143.0,0.214723]
[1736410610422,0.0001706,93155.0,93143.0,0.38862276]
[1736410610619,0.00032124,93144.0,93143.0,1.92201175]
[1736410611007,0.00032124,93144.0,93143.0,0.42201175]
[1736410611209,0.00032124,93144.0,93143.0,0.17389976]
[1736410611853,0.00032124,93144.0,93143.0,0.17789976]
[1736410613216,0.00132124,93144.0,93143.0,0.18689976]
[1736410613414,0.00032124,93144.0,93143.0,0.17389976]
[1736410613844,0.00132124,93144.0,93143.0,0.18289976]
[1736410614177,0.00132124,93144.0,93143.0,0.009]
[1736410614403,0.00132124,93144.0,93143.0,0.006]
[1736410614603,0.00032124,93144.0,93143.0,0.003]
[1736410614812,0.00032124,93144.0,93143.0,0.01]
[1736410614813,0.00132124,93144.0,93143.0,0.01]
[1736410615989,0.0001706,93155.0,93143.0,0.01]
[1736410616536,0.2147,93153.0,93143.0,0.01]
[1736410616938,0.2147,93153.0,93143.0,0.007]
[1736410617140,0.2147,93153.0,93143.0,0.001]
[1736410617513,0.2147,93153.0,93143.0,0.004]
[1736410617720,0.01112361,93155.0,93140.0,0.214728]
[1736410617927,0.01112361,93155.0,93141.0,0.10429976]
[1736410618130,0.214698,93154.0,93143.0,0.002]
[1736410618530,0.214698,93154.0,93141.0,0.31902776]
[1736410618870,0.214698,93154.0,93143.0,0.004]
[1736410619215,0.429396,93154.0,93143.0,0.004]
[1736410619419,0.214698,93154.0,93143.0,0.004]
[1736410620039,0.01112361,93155.0,93142.0,0.214725]
[1736410620251,0.0001706,93155.0,93143.0,0.25829976]
[1736410620452,0.0001706,93155.0,93150.0,0.214706]
[1736410620650,0.0001706,93155.0,93152.0,0.214702]
[1736410620864,0.0001706,93155.0,93153.0,0.10429976]
[1736410621273,0.0001706,93155.0,93145.0,0.15]
[1736410621498,0.0001706,93155.0,93147.0,0.15]
[1736410621709,0.0001706,93155.0,93150.0,0.001]
[1736410622159,0.214698,93154.0,93150.0,0.001]
[1736410623109,0.214698,93154.0,93144.0,0.0678]
[1736410623344,0.214698,93154.0,93145.0,0.001]
[1736410623531,0.0001706,93155.0,93145.0,0.001]
[1736410623806,0.0001706,93155.0,93153.0,0.003]
[1736410624006,0.0001706,93155.0,93144.0,0.0678]
[1736410624007,0.2147,93153.0,93144.0,0.0678]
[1736410624287,0.21471,93149.0,93144.0,0.002]
[1736410624468,0.0001706,93155.0,93144.0,0.002]
[1736410624469,0.214718,93145.0,93144.0,0.006]
[1736410624674,0.214718,93145.0,93144.0,0.002]
[1736410625113,0.0451,93146.0,93124.0,0.0678]
[1736410625317,0.214754,93130.0,93129.0,0.00015064]
[1736410626552,0.01092604,93130.0,93129.0,0.00015064]
[1736410626763,0.003,93145.0,93129.0,0.00015064]
[1736410626969,0.429443,93144.0,93130.0,0.10429976]
[1736410627171,0.214723,93143.0,93130.0,0.10429976]
[1736410627409,0.214721,93144.0,93130.0,0.10429976]
[1736410627586,0.003,93146.0,93130.0,0.10429976]
[1736410627826,0.214692,93157.0,93130.0,0.10429976]
[1736410627827,0.214692,93157.0,93135.0,0.214739]
[1736410628038,0.214692,93157.0,93137.0,0.364737]
[1736410628245,0.01131096,93155.0,93138.0,0.10429976]
[1736410628685,0.0001706,93155.0,93147.0,0.214713]
[1736410628865,0.0001706,93155.0,93147.0,0.31901276]
[1736410629502,0.0001706,93155.0,93152.0,0.15]
[1736410629712,0.0001706,93155.0,93154.0,0.15]
[1736410629918,0.0001706,93155.0,93154.0,0.32999976]
[1736410630741,0.0001706,93155.0,93154.0,0.39779976]
[1736410631142,0.0011706,93155.0,93154.0,0.40479976]
[1736410631348,0.0001706,93155.0,93154.0,0.39779976]
[1736410631786,0.0011706,93155.0,93154.0,0.40579976]
[1736410631959,0.0011706,93155.0,93154.0,0.44218097]
[1736410632499,0.0011706,93155.0,93154.0,0.011]
[1736410632706,0.0011706,93155.0,93154.0,0.008]
[1736410632939,0.0011706,93155.0,93154.0,0.11229976]
[1736410633350,0.0011706,93155.0,93154.0,1.76229976]
[1736410633548,0.0001706,93155.0,93154.0,1.75429976]
[1736410633721,0.0001706,93155.0,93154.0,1.78771114]
[1736410633931,0.0001706,93155.0,93154.0,1.79571114]
[1736410634150,0.0011706,93155.0,93154.0,1.78771114]
[1736410634528,0.0011706,93155.0,93154.0,1.79871114]
[1736410634935,0.0011706,93155.0,93154.0,1.79171114]
[1736410635141,0.0011706,93155.0,93154.0,1.81871114]
[1736410635346,0.0011706,93155.0,93154.0,2.46351114]
[1736410635506,0.0011706,93155.0,93154.0,2.45951114]
[1736410635708,0.0011706,93155.0,93154.0,2.35951114]
[1736410635905,0.0011706,93155.0,93154.0,0.68251114]
[1736410636135,0.0011706,93155.0,93154.0,0.03341138]
[1736410636334,0.0011706,93155.0,93154.0,0.004]
[1736410637133,0.0011706,93155.0,93154.0,0.013]
[1736410637648,0.0011706,93155.0,93145.0,0.214717]
[1736410637853,0.0011706,93155.0,93147.0,0.214714]
[1736410638048,0.0011706,93155.0,93148.0,0.10429976]
[1736410638413,0.0011706,93155.0,93154.0,0.009]
[1736410638596,0.0011706,93155.0,93154.0,0.11729976]
[1736410638794,0.0011706,93155.0,93154.0,0.29282244]
[1736410638954,0.0011706,93155.0,93154.0,0.28774904]
[1736410639358,0.0011706,93155.0,93154.0,1.78774904]
[1736410640019,0.0011706,93155.0,93154.0,2.33254904]
[1736410641201,0.0011706,93155.0,93154.0,2.45854904]
[1736410641407,0.0011706,93155.0,93154.0,2.46454904]
[1736410641642,0.0011706,93155.0,93154.0,2.33254904]
[1736410642060,0.0011706,93155.0,93154.0,2.34554904]
[1736410642444,0.0011706,93155.0,93154.0,0.84554904]
[1736410643630,0.0011706,93155.0,93154.0,0.91334904]
[1736410644004,0.0011706,93155.0,93154.0,0.93484865]
[1736410644595,0.0011706,93155.0,93154.0,1.05784865]
[1736410645456,0.0011706,93155.0,93154.0,1.15384865]
[1736410645817,0.0011706,93155.0,93154.0,1.15559103]
[1736410646027,0.0011706,93155.0,93154.0,1.17059103]
[1736410646937,0.0011706,93155.0,93154.0,2.67059103]
[1736410647152,0.0001702,93162.0,93161.0,0.1]
[1736410647357,0.0001702,93162.0,93161.0,0.72650415]
[1736410647554,0.0001702,93162.0,93161.0,0.72543104]
[1736410647756,0.0001702,93162.0,93161.0,2.22543104]
[1736410648182,0.0001704,93185.0,93167.0,0.9795]
[1736410648386,0.0001704,93185.0,93167.0,1.14024904]
[1736410648637,2e-07,93168.0,93167.0,1.14024904]
[1736410648782,2e-07,93168.0,93167.0,2.64024904]
[1736410649347,0.0001704,93185.0,93181.0,0.587636]
[1736410649348,0.01414124,93182.0,93181.0,0.587636]
[1736410649547,0.01429182,93182.0,93181.0,0.79318504]
[1736410649822,0.01429182,93182.0,93181.0,0.87128504]
[1736410650606,0.01429182,93182.0,93181.0,0.87088504]
[1736410650854,0.0001704,93185.0,93184.0,0.35]
[1736410651047,0.0001704,93185.0,93184.0,1.05554904]
[1736410651252,0.0001704,93220.0,93184.0,1.05554904]
[1736410651253,1e-08,93191.0,93190.0,0.487615]
[1736410651542,1e-08,93193.0,93192.0,0.273]
[1736410651768,1e-08,93193.0,93192.0,0.41074904]
[1736410652322,1e-08,93193.0,93192.0,0.62535904]
[1736410653249,1e-08,93193.0,93192.0,0.67575904]
[1736410653459,1e-08,93193.0,93192.0,0.69713111]
[1736410653892,1e-08,93193.0,93192.0,0.56368183]
[1736410654443,1e-08,93193.0,93192.0,0.17769976]
[1736410654604,1e-08,93193.0,93192.0,0.18069976]
[1736410654808,1e-08,93193.0,93192.0,0.11329976]
[1736410655016,1e-08,93193.0,93192.0,0.006]
[1736410655216,1e-08,93193.0,93192.0,0.11029976]
[1736410655537,1e-08,93193.0,93192.0,0.10429976]
[1736410655951,1e-08,93193.0,93192.0,0.11229976]
[1736410656150,1e-08,93193.0,93192.0,0.26337273]
[1736410656492,1e-08,93193.0,93192.0,0.25429976]
[1736410656689,1e-08,93193.0,93192.0,0.25629976]
[1736410656891,0.00100001,93193.0,93192.0,0.25629976]
[1736410657106,0.00100001,93193.0,93192.0,0.2895996]
[1736410657473,0.00100001,93193.0,93192.0,0.9343996]
[1736410657894,0.00100001,93193.0,93192.0,0.9363996]
[1736410658301,0.00100001,93193.0,93192.0,0.9403996]
[1736410658499,0.00100001,93193.0,93192.0,0.9323996]
[1736410658720,0.00100001,93193.0,93192.0,0.9383996]
[1736410658914,0.00100001,93193.0,93192.0,0.9473996]
[1736410659143,0.00100001,93193.0,93192.0,0.9383996]
[1736410659445,0.00100001,93193.0,93192.0,0.9413996]
[1736410659647,0.00100001,93193.0,93192.0,0.91409976]
[1736410659850,0.00100001,93193.0,93192.0,0.90509976]
[1736410660045,0.00100001,93193.0,93192.0,2.42809976]
[1736410660340,0.00100001,93193.0,93192.0,2.37809976]
[1736410660593,0.00100001,93193.0,93192.0,2.27809976]
[1736410661033,0.00100001,93193.0,93192.0,0.84549976]
[1736410661333,0.00100001,93193.0,93192.0,0.95449976]
[1736410661538,0.00100001,93193.0,93192.0,0.93949976]
[1736410661737,0.00100001,93193.0,93192.0,0.87281356]
[1736410661950,0.00100001,93193.0,93192.0,0.85449976]
[1736410662469,0.00100001,93193.0,93192.0,0.83949976]
[1736410662742,0.00100001,93193.0,93192.0,0.85449976]
[1736410663001,0.00100001,93193.0,93192.0,0.88782737]
[1736410663253,0.00100001,93193.0,93192.0,0.88182737]
[1736410663491,0.00100001,93193.0,93192.0,2.48182737]
[1736410663690,0.00100001,93193.0,93192.0,2.58182737]
[1736410664072,0.00100001,93193.0,93192.0,2.58782737]
[1736410665263,0.00100001,93193.0,93192.0,2.57882737]
[1736410665457,0.00100001,93193.0,93192.0,2.57282737]
[1736410665639,0.00100001,93193.0,93192.0,2.58182737]
[1736410665852,0.00100001,93193.0,93192.0,2.58782737]
[1736410666054,0.00100001,93193.0,93192.0,2.57882737]
[1736410666261,0.00100001,93193.0,93192.0,2.58182737]
[1736410666685,0.00100001,93193.0,93192.0,2.57982737]
[1736410667108,1e-08,93193.0,93192.0,2.57282737]
[1736410667512,0.0001704,93218.0,93217.0,0.387553]
[1736410667706,0.0001704,93218.0,93217.0,0.55925276]
[1736410667707,0.00032093,93218.0,93217.0,0.55925276]
[1736410668620,0.00032093,93218.0,93217.0,0.56825276]
[1736410669066,0.00032093,93218.0,93217.0,0.55925276]
[1736410669446,0.00032093,93218.0,93217.0,0.57325276]
[1736410671455,0.00032093,93218.0,93217.0,0.59502413]
[1736410671590,0.00032093,93218.0,93217.0,0.58102413]
[1736410672016,0.00032093,93218.0,93217.0,0.59502413]
[1736410672447,0.00032093,93218.0,93217.0,2.1283569]
[1736410672892,0.00132093,93218.0,93217.0,2.2283569]
[1736410673011,0.00132093,93218.0,93217.0,2.2233569]
[1736410673204,0.00132093,93218.0,93217.0,2.2143569]
[1736410673436,0.00132093,93218.0,93217.0,2.2193569]
[1736410673855,0.00132093,93218.0,93217.0,2.3193569]
[1736410674168,0.00132093,93218.0,93217.0,2.29758553]
[1736410674876,0.00132093,93218.0,93217.0,2.29258553]
[1736410675238,0.00132093,93218.0,93217.0,2.30758553]
[1736410675459,0.00132093,93218.0,93217.0,0.79858553]
[1736410675665,0.00132093,93218.0,93217.0,0.79258553]
[1736410675820,0.00132093,93218.0,93217.0,2.30158553]
[1736410676020,0.00132093,93218.0,93217.0,2.84638553]
[1736410676226,0.00132093,93218.0,93217.0,2.77898553]
[1736410676425,0.00132093,93218.0,93217.0,2.59028153]
[1736410676642,0.00132093,93218.0,93217.0,2.50764153]
[1736410676839,18.84998138,93234.0,93218.0,0.173]
[1736410677044,0.00050165,93231.0,93222.0,0.023]
[1736410677241,0.00050165,93231.0,93225.0,0.023]
[1736410677442,0.00050165,93231.0,93220.0,0.214546]
[1736410677443,0.00050165,93231.0,93227.0,0.173]
[1736410677672,0.00050165,93231.0,93229.0,0.15]
[1736410677869,0.00050165,93231.0,93230.0,0.10429976]
[1736410678068,0.00050165,93231.0,93230.0,0.25429976]
[1736410678314,0.00050165,93231.0,93230.0,0.32165976]
[1736410678726,0.00050165,93231.0,93230.0,0.34465976]
[1736410678921,0.00050165,93231.0,93230.0,0.37802568]
[1736410679511,0.00050165,93231.0,93230.0,1.89202568]
[1736410680253,0.00050165,93231.0,93230.0,0.38278611]
[1736410681547,0.00050165,93231.0,93230.0,0.40578611]
[1736410683605,0.00050165,93231.0,93230.0,0.32466568]
[1736410683809,0.00050165,93231.0,93230.0,0.04736592]
[1736410684028,0.00050165,93231.0,93230.0,0.014]
[1736410684437,0.00050165,93231.0,93230.0,0.08132]
[1736410685236,0.00050165,93231.0,93230.0,0.20861976]
[1736410685843,0.00050165,93231.0,93230.0,0.24202893]
[1736410686244,0.00050165,93231.0,93230.0,0.2420283]
[1736410687861,0.00050165,93231.0,93230.0,1.8920283]
[1736410688045,0.00050165,93231.0,93230.0,2.4368283]
[1736410688449,0.00050165,93231.0,93230.0,0.9368283]
[1736410689246,0.00050165,93231.0,93230.0,0.9138283]
[1736410689767,0.00050165,93231.0,93230.0,0.8465083]
[1736410689973,0.00050165,93231.0,93230.0,0.9138283]
[1736410690177,0.00050165,93231.0,93230.0,0.88041976]
[1736410690377,0.00050165,93231.0,93230.0,0.91384471]
[1736410691032,0.00150165,93231.0,93230.0,0.91384471]
[1736410692274,18.84148303,93234.0,93231.0,0.21452]
[1736410692463,18.84148303,93234.0,93233.0,0.214516]
[1736410692696,18.84148303,93234.0,93233.0,0.35224071]
[1736410692832,18.84148303,93234.0,93233.0,0.50224071]
[1736410693461,18.84148303,93234.0,93233.0,2.00224071]
[1736410693679,18.84148303,93234.0,93233.0,2.01124071]
[1736410694156,18.84148303,93234.0,93233.0,0.51124071]
[1736410694539,18.56764102,93234.0,93233.0,0.47781576]